Cogmind - Beta 14 --- EXPLORER MODE // 2024.08.18 @ 14:09:05 Player: Analote Result: Self-destructed Performance ------------- Evolutions (1) 500 Regions Visited (2) 400 Robots Destroyed (26) 130 Value Destroyed (675) 675 Prototype IDs (0) 0 Alien Tech Used (0) 0 Bonus (0) 0 TOTAL SCORE: 1705 Bonus ------- None Cogmind --------- Core Integrity 316/400 Matter 300/300 Energy 125/125 System Corruption 0% Temperature Cool (0) Movement Treading (160) Location -9/Materials Parts ------- > --- POWER (1) -------- Light Ion Engine > --- PROPULSION (2) --- Light Treads Light Treads > --- UTILITY (4) ------ Medium Storage Unit Targeting Computer Improved Targeting Computer Shield Generator > --- WEAPON (3) ------- Small Laser Small Laser Light Assault Rifle > --- INVENTORY (10) --- Light Treads Light Treads Improved Heat Sink Terrain Scanner Peak State ------------ > --- POWER ------------ Light Ion Engine > --- PROPULSION ------- Light Treads Light Treads > --- UTILITY ---------- Medium Storage Unit Targeting Computer Improved Targeting Computer Shield Generator > --- WEAPON ----------- Small Laser Small Laser Light Assault Rifle > --- INVENTORY -------- Light Treads Light Treads Improved Heat Sink Terrain Scanner [Rating: 12] Favorites ----------- Power Light Ion Engine Engine Light Ion Engine Propulsion Light Treads Treads Light Treads Utility Targeting Computer Device Terrain Scanner Storage Medium Storage Unit Processor Targeting Computer Weapon Small Laser Energy Gun Small Laser Ballistic Gun Light Assault Rifle Build | -11 -10 -9 ------- Run | Yrd Mat Mat Slots Evolved 3 | . 1 2 Power . | . . . Propulsion . | . . . Utility 2 | . 1 1 Weapon 1 | . . 1 Parts Attached 12 | 7 1 4 Power 1 | 1 . . Engine 1 | 1 . . Core . | . . . Reactor . | . . . Propulsion 2 | 2 . . Treads 2 | 2 . . Leg . | . . . Wheel . | . . . Hover . | . . . Flight . | . . . Utility 6 | 2 1 3 Device 2 | . . 2 Storage 1 | 1 . . Processor 3 | 1 1 1 Hackware . | . . . Protection . | . . . Artifact . | . . . Weapon 3 | 2 . 1 Energy Gun 2 | 1 . 1 Energy Cannon . | . . . Ballistic Gun 1 | 1 . . Ballistic Cannon . | . . . Launcher . | . . . Special Weapon . | . . . Impact Weapon . | . . . Slashing Weapon . | . . . Piercing Weapon . | . . . Special Melee Weapon . | . . . Unidentified Prototypes . | . . . Parts Lost . | . . . Power . | . . . Propulsion . | . . . Utility . | . . . Weapon . | . . . Highest Loss Streak . | . . . To Critical Strikes . | . . . Average Slot Usage (%) 100 | . 100 100 Engine 10 | . 12 10 Treads 20 | . 25 20 Device 9 | . . 10 Storage 10 | . 12 10 Processor 20 | . 25 20 Energy Gun 19 | . 12 20 Ballistic Gun 10 | . 12 10 Peak Build Rating 12 | 7 8 12 Average Rating 9 | 5 8 10 On Entrance 5 | . 7 8 Naked Turns . | . . . Heaviest Build 18 | 15 15 18 Greatest Support 40 | 40 40 40 Greatest Overweight (x) . | . . . Average Overweight (x) . | . . . Largest Inventory Capacity 10 | 10 10 10 Average Capacity 9 | 8 10 10 Most Carried 4 | 4 2 4 Average Carried 1 | . . 1 Final Capacity 10 | 10 10 10 Final Carried 4 | 1 2 4 Class Distribution -------------------- 86% | Hacker-Gunner 13% | Hacker-Mutant Dominant Class ---------------- Hacker-Mutant | -10/Materials Hacker-Gunner | -9/Materials Resources | -11 -10 -9 ----------- Run | Yrd Mat Mat Matter Collected 388 | 172 103 113 Remotely . | . . . Salvage Created 896 | . 103 793 Parts 60 | . 8 52 Haulers Intercepted 1 | . . 1 Recyclers Shooed . | . . . Parts Field Recycled . | . . . Retrieved Matter . | . . . Parts Self-Destructed . | . . . Prevented . | . . . Kills | -11 -10 -9 ------- Run | Yrd Mat Mat Combat Hostiles Destroyed 20 | . 2 18 Guns 20 | . 2 18 Classes Destroyed 5 | . 2 3 Hauler 1 | . . 1 Watcher 5 | . 1 4 Swarmer 7 | . . 7 Grunt 8 | . 2 6 Sentry 5 | . . 5 Best Kill Streak 3 | . 2 3 Combat Bots Only 2 | . 1 2 Max Kills in Single Turn 2 | . 1 2 Gunslinging 1 | . . 1 Exploded . | . . . Melee . | . . . Uniques/NPCs Destroyed . | . . . Combat | -11 -10 -9 -------- Run | Yrd Mat Mat Hostile Shots Fired 97 | . 7 90 Missed 30 | . 2 28 Damage Taken 503 | . 34 469 Core 91 | . 7 84 Absorbed by Shields 15 | . . 15 Ignored by Resistances 333 | . 22 311 Core Remaining (%) 98 | 100 97 . Volleys Fired 68 | . 7 61 Largest 3 | . 2 3 Hottest 100 | . 60 100 Shots Fired 181 | . 14 167 Gun 181 | . 14 167 Cannon . | . . . Launcher . | . . . Special . | . . . Kinetic 68 | . 7 61 Thermal 113 | . 7 106 Explosive . | . . . Electromagnetic . | . . . Robot Hit Streak 43 | . 8 43 Robot Miss Streak 1 | . 1 1 Penetration Max . | . . . Secondary Targets 4 | . . 4 Max Gunslinging Chain 1 | . . 1 Shots Hit Robots 149 | . 11 138 Core Hits 49 | . 6 43 Critical Kills . | . . . Critical Parts Destroyed 1 | . . 1 Critical Strikes 1 | . . 1 Destroy 1 | . . 1 Melee Attacks . | . . . Impact . | . . . Slashing . | . . . Piercing . | . . . Sneak Attacks . | . . . Combat Hostiles . | . . . Follow-up Attacks . | . . . Damage Inflicted 1492 | . 109 1383 Guns 1492 | . 109 1383 Cannons . | . . . Explosions . | . . . Melee . | . . . Ramming . | . . . Kinetic 400 | . 41 359 Thermal 1092 | . 68 1024 Explosive . | . . . Electromagnetic . | . . . Impact . | . . . Slashing . | . . . Piercing . | . . . Highest Corruption . | . . . Average Corruption . | . . . Corruption Purged . | . . . Corruption Blocked . | . . . Overload Shots . | . . . Overflow Damage . | . . . Projectiles . | . . . Explosions . | . . . Melee . | . . . Knockbacks . | . . . Impact . | . . . Kinetic . | . . . Secondary . | . . . Self-Inflicted Damage . | . . . Shots . | . . . Rammed . | . . . Targets Rammed . | . . . Kicked . | . . . Crushed . | . . . Highest Temperature 330 | . 32 330 Average Temperature 81 | . 15 86 Received Heat Transfer 372 | . 30 342 Effects 2 | . . 2 Interference 2 | . . 2 Siege Activations . | . . . Robots Corrupted . | . . . Combat Hostiles . | . . . Parts Fried . | . . . Impact Corruptions . | . . . Robots Melted . | . . . Combat Hostiles . | . . . Parts Melted 5 | . . 5 Heat Transferred 2475 | . 150 2325 Parts Sabotaged . | . . . Parts Stolen . | . . . Parts Stripped . | . . . Power Chain Reactions . | . . . Alert | -11 -10 -9 ------- Run | Yrd Mat Mat Peak Influence 324 | . 77 324 Initial 23 | . . 23 Average 126 | . 36 142 Maximum Alert Level 1 | . . 1 Low Security (%) 81 | 100 100 78 Level 1 18 | . . 21 Level 2 . | . . . Level 3 . | . . . Level 4 . | . . . Level 5 . | . . . High Security . | . . . Max Security . | . . . Squads Dispatched 1 | . . 1 Investigation 1 | . . 1 Extermination . | . . . Reinforcement . | . . . Assault . | . . . Garrison . | . . . Intercept . | . . . Searches Triggered . | . . . Construction Impeded . | . . . Haulers Reinforced . | . . . Active Scanning Responses . | . . . Cargo Convoy Interrupts . | . . . Stealth | -11 -10 -9 --------- Run | Yrd Mat Mat Distress Signals 1 | . . 1 Communications Jammed . | . . . Distress Signals . | . . . Times Spotted 27 | . 4 23 Peak Tracking Total 6 | . 2 6 Tactical Retreats 4 | . 1 3 Traps | -11 -10 -9 ------- Run | Yrd Mat Mat Traps Triggered . | . . . Indirectly . | . . . Trap Hack Attempts . | . . . Triggered . | . . . Disarmed . | . . . Reprogrammed 9 | . . 9 Reused 4 | . . 4 Traps Extracted . | . . . Installed . | . . . Triggered 4 | . . 4 Machines | -11 -10 -9 ---------- Run | Yrd Mat Mat Machines Disabled . | . . . Max in Single Turn . | . . . Machines Repaired . | . . . Machines Dismantled . | . . . Machines Sabotaged . | . . . Overloaded Fab Kills . | . . . Hacking | -11 -10 -9 --------- Run | Yrd Mat Mat Machines Accessed 8 | . . 8 Terminals 8 | . . 8 Fabricators . | . . . Repair Stations . | . . . Recycling Units . | . . . Scanalyzers . | . . . Garrison Access . | . . . Total Hacks 26 | . . 26 Successful 19 | . . 19 Failed 7 | . . 7 Catastrophic . | . . . Database Lockouts . | . . . Manual 26 | . . 26 Terminals 26 | . . 26 Fabricators . | . . . Repair Stations . | . . . Recycling Units . | . . . Scanalyzers . | . . . Garrison Access . | . . . Terminal Hacks 5 | . . 5 Locate Traps 2 | . . 2 Reprogram Traps 2 | . . 2 Zone Layout 1 | . . 1 Fabricator Hacks . | . . . Repair Station Hacks . | . . . Recycling Unit Hacks . | . . . Scanalyzer . | . . . Garrison Access Hacks . | . . . Unauthorized Hacks 14 | . . 14 Terminals 14 | . . 14 Track 1 | . . 1 Assimilate 3 | . . 3 Botnet 7 | . . 7 Operators 1 | . . 1 Skim 2 | . . 2 Fabricators . | . . . Repair Stations . | . . . Recycling Units . | . . . Scanalyzers . | . . . Garrison Access . | . . . Data Cores Recovered . | . . . Used . | . . . Hacking Detections 4 | . . 4 Full Trace Events 3 | . . 3 Feedback Events . | . . . Feedback Blocked . | . . . Robot Schematics Acquired . | . . . Robots Built . | . . . Authchips . | . . . Time . | . . . Total Robot Build Rating . | . . . Part Schematics Acquired . | . . . Parts Built . | . . . Authchips . | . . . Time . | . . . Total Part Build Rating . | . . . Parts Repaired . | . . . Time . | . . . Parts Recycled . | . . . Recycled Matter . | . . . Retrieved Matter . | . . . Retrieved Components . | . . . Parts Scanalyzed . | . . . Part Schematics Acquired . | . . . Parts Damaged . | . . . Bothacking | -11 -10 -9 ------------ Run | Yrd Mat Mat Used RIF Installer . | . . . Robots Hacked . | . . . Non-combat . | . . . Combat . | . . . Robot Hacks Applied . | . . . Relay Couplers Released . | . . . Fabnet Peak Effective % . | . . . Robots Rewired . | . . . Allies Hacked . | . . . Hacks Repelled . | . . . Allies | -11 -10 -9 -------- Run | Yrd Mat Mat Total Allies . | . . . Largest Group . | . . . Highest-Rated Group . | . . . Highest-Rated Ally . | . . . Total Orders . | . . . Ally Attacks . | . . . Total Damage . | . . . Kills . | . . . Allies Corrupted . | . . . Allies Melted . | . . . Intel | -11 -10 -9 ------- Run | Yrd Mat Mat Robot Analysis Total . | . . . Derelict Logs Recovered . | . . . Drone Launches . | . . . Drone Recoveries . | . . . Exploration | -11 -10 -9 ------------- Run | Yrd Mat Mat Turns Passed 1385 | 62 130 1193 Spaces Moved 707 | 37 61 609 Core 10 | 10 . . Treads 697 | 27 61 609 Legs . | . . . Wheels . | . . . Hover . | . . . Flight . | . . . Fastest Speed 50 | 50 160 160 Average Speed 158 | 130 160 160 Slowest Speed 160 | 160 160 160 Overloaded Moves . | . . . Propulsion Burnouts . | . . . Robots Hopped . | . . . Cave-ins Triggered . | . . . Exploration Rate (%) 28 | 4 18 62 Regions Visited 2 Branch Regions . Pre-discovered Areas . | . . . Known Exits Taken 2 | 1 1 . Unknown Exits Taken . | . . . Scrap Searched . | . . . Spaces Dug . | . . . Terrain Destroyed . | . . . Melee . | . . . Projectile . | . . . AOE . | . . . Terrain Rammed . | . . . Walls Destroyed . | . . . Machines Disabled . | . . . Actions | -11 -10 -9 --------- Run | Yrd Mat Mat Total 843 | 51 81 711 Wait 43 | . 11 32 Move 705 | 36 60 609 Hop . | . . . Pick Up 15 | 8 2 5 Fast Attach . | . . . Attach 10 | 7 1 2 Detach . | . . . Swap 2 | . . 2 Drop . | . . . Fire 68 | . 7 61 Melee . | . . . Ram . | . . . Kick . | . . . Crush . | . . . Escape Stasis . | . . . Rewire . | . . . Trap . | . . . Miscellaneous . | . . . Route ------- -11/Scrapyard -10/Materials -9/Materials (discovered 2 exits: *Mat x2) History --------- Turn | Location | Event 6 | -11/Scrapyard | Identified exit to Materials 6 | -11/Scrapyard | Discovered exit to Materials (range 16) 63 | -11/Scrapyard | Entered Materials 63 | -10/Materials | Evolved 1 slot: Utility x1 146 | -10/Materials | Identified exit to Materials 146 | -10/Materials | Discovered exit to Materials (range 16) 193 | -10/Materials | Entered another Materials area 193 | -9/Materials | Evolved 2 slots: Utility x1, Weapon x1 481 | -9/Materials | Build established: Hacker-Gunner 823 | -9/Materials | Identified exit to Materials 823 | -9/Materials | Discovered exit to Materials (range 13) 1276 | -9/Materials | Discovered exit to Materials (range 16) 1386 | -9/Materials | Self-destructed Last Messages --------------- 01199_ Acquired 8 matter. 01200_ U-05 Engineer builds a Door. 01216_ Acquired 1 matter. 01218_ G-34 Mercenary destroyed. 01219_ Acquired 1 matter. 01221_ G-34 Mercenary destroyed. 01222_ Acquired 1 matter. 01225_ R-06 Scavenger collects Lgt. Armor Plating. 01230_ R-06 Scavenger collects Beam Rifle. 01243_ Acquired Imp. Targeting Computer. 01244_ Discarded Targeting Computer. 01254_ Acquired Shield Generator. 01256_ Acquired 20 matter. 01276_ EXIT=FOUND: MATERIALS 01381_ Critical hit (Burn: +24). 01383_ Acquired 7 matter. 01384_ Y-45 Defender destroyed. 01385_ Acquired 1 matter. 01385_ K-01 Serf collects debris. Map ----- +----------------------------------------------------+ | ???#??????????# #????#????????# # !!* # | | ??????????????# ##????????????# # !# | | ????????? ? ??# ######????????# # +! | | ?#???????? ???# # #????????# # ###### | | ????#?##???? ?# # #????????# ###########????? | | ????# ######+## # #? ??????# #????#?????????? | | ????# + ""#????????# [ ????????#?????? | | ????# # ""#???????? ??????????????? | | ????# # T"#???????? ??? ???? ?????? | | ????# " # ""#?? ?????# ?????????????? | | ?#??# " # ""#????????## !??? ??????????? | | ????# # #?????????? !????? ????????# | | ????# ######??????###? ???????????????? | | ???## #??????????? #??????????????????? | | ??#?# ##### #??????????? ???????????????????? | | ????# ??###+####??????? ???????????????????? | | ????# ### #??? ? ? ???????????????????? | | ????# ? # %! #??? ??? ???????????????????? | | ????####??# # !!% #???? ? ????????????????????? | | ??????#???# # ! ##?????? ????????????????????? | | ########### # # ????? ????????????????????? | | # # #[!! ##???###+###???????? ?????????? | | # """ """ # ##+########## ####### ????????? | | # """ """ # % r r t ! ????????? | | # """ """ + k *%! ???????? | | # # % @ k ????????? | | # ]]! ### ########### ####???????????????? | | # ] % [#?# #?????????## ########????????????? | | # ]! #?# #??######### # #????????????? | | ###########?# #? ! # # #????????????? | | ???#???????## ## + + #????????????? | | ????######## + # # """" #????????????? | | ????? # # # # """" #????????????? | | #??? """ # ########### # """" #????????????? | | ???? """"" # #######?????????????? | | ???? """"" + #???????????????????? | | ???? """"" # #???????????????????? | | ???? """ # ########### #???????????????????? | | ????? # #?????????# #???????????????????? | | ???? # #?????????# #???????????????????? | | ???######### #?????????# #???????????????????? | | ???????????# ########### ???????????????????? | | ???????????# # # ??????????????????? | | ???????????# # # ?????????????????? | | ???????????# + ########????????????????? | | ???????????# # #???????????????????????? | | ???????????# < # #???????????????????????? | | ???????????# # """ """ #???????????????????????? | | ???????????##### """ """ #???????????????????????? | | ???????????????# """ """?????????????????????????? | +----------------------------------------------------+ Best States ------------- Heat Dissipation 28 Energy Generation 10 Energy Capacity 125 Matter Stores 300 Matter Capacity 300 Sight Range 16 Terrain Scan Range 14 Terrain Scan Density 10 Resistance: KI 35 Resistance: TH 35 Resistance: EX 35 Resistance: EM 35 Resistance: I 35 Resistance: S 35 Resistance: P 35 Evasion (%) 50 Targeting Accuracy 11 Recoil Reduction 2 Offensive Hacking 20 Item Schematics ----------------- None Robot Schematics ------------------ None Fabricated ------------ Nothing Alien Tech Used ----------------- None Achievements -------------- None Challenges ------------ None Game ------ Seed AlphaSalvagingBasin Manual? 0 Play Time 00:08:31 Cumulative 101.8 hours Start 2024.08.18 @ 13:57:59 End 2024.08.18 @ 14:09:05 Sessions 1 Manual Loads 0 Difficulty Explorer Special Mode None Game No. 127 Rogue 7 Adventurer 1 Explorer 119 Win Type - Total 3 Types 2/0/1/0/0/0/0/0/0 Lore% 44 Gallery% 62 Achievement% 67 Wizard Run 0 Options --------- Layout 1 ASCII 0 Keyboard 1 Movement Numpad Keybinds 0 Fullscreen 2 Font 24/Smallcaps Map View 50x35 Zoom Use 0% Tactical HUD 1 Map Filters NONE Filters NONE Steam 1 RUN: 12a38758-09f3-4247-a731-75618f78d86b